bitfinex/quotes_BTCUSD_20251110
["timestamp","ask_amount","ask_price","bid_price","bid_amount"]
[1762788417241,0.83625529,105470.0,105460.0,0.0001435]
[1762788418273,0.73963474,105470.0,105460.0,0.0001435]
[1762788418455,0.73959461,105470.0,105460.0,0.0001435]
[1762788419434,0.77658418,105470.0,105460.0,0.0001435]
[1762788419693,0.73959461,105470.0,105460.0,0.0001435]
[1762788421136,0.7495946,105470.0,105460.0,0.0001435]
[1762788421758,0.7495946,105470.0,105460.0,1e-08]
[1762788422359,0.7295946,105470.0,105460.0,1e-08]
[1762788422567,0.78288325,105470.0,105460.0,1e-08]
[1762788422940,0.78987283,105470.0,105460.0,1e-08]
[1762788423141,0.76002006,105470.0,105460.0,1e-08]
[1762788423346,0.84569632,105470.0,105460.0,1e-08]
[1762788423550,0.8696859,105470.0,105460.0,1e-08]
[1762788423909,0.92340001,105470.0,105460.0,1e-08]
[1762788424132,0.92340001,105470.0,105400.0,0.0004]
[1762788424133,0.20973531,105410.0,105400.0,0.0004]
[1762788424360,0.61845245,105410.0,105400.0,0.00087912]
[1762788424578,0.64620245,105410.0,105400.0,0.00087912]
[1762788425518,0.5689356,105400.0,105390.0,0.0004]
[1762788425742,0.71894055,105400.0,105390.0,0.0004907]
[1762788425968,0.03757486,105400.0,105390.0,0.0317107]
[1762788426185,0.03757486,105400.0,105390.0,0.27304188]
[1762788426186,0.01757486,105400.0,105390.0,0.27304188]
[1762788426627,0.20732818,105400.0,105390.0,0.08327056]
[1762788426864,0.20932818,105400.0,105390.0,0.0611207]
[1762788427069,0.21032818,105400.0,105390.0,0.0611207]
[1762788427495,0.21032818,105400.0,105390.0,0.0125507]
[1762788427909,0.20932818,105400.0,105390.0,0.0125507]
[1762788428411,0.20732818,105400.0,105390.0,0.0125507]
[1762788428839,0.20732818,105400.0,105390.0,0.03572547]
[1762788429669,0.01757486,105400.0,105390.0,0.24465679]
[1762788429876,0.01757486,105400.0,105390.0,0.27406679]
[1762788430053,0.20732818,105400.0,105390.0,0.08429547]
[1762788430642,0.20732818,105400.0,105390.0,0.05488547]
[1762788430849,0.01757486,105400.0,105390.0,0.24465679]
[1762788431049,0.22620818,105400.0,105390.0,0.0004907]
[1762788431249,0.59695818,105400.0,105390.0,0.0004907]
[1762788431565,0.05645486,105400.0,105390.0,0.0004907]
[1762788431746,0.20732818,105400.0,105390.0,0.0490607]
[1762788432338,0.20732818,105400.0,105390.0,0.0196507]
[1762788432534,0.20832818,105400.0,105390.0,0.0196507]
[1762788432862,0.20832818,105400.0,105390.0,0.05396677]
[1762788433090,0.20832818,105400.0,105390.0,0.0490607]
[1762788433490,0.01857486,105400.0,105390.0,0.0490607]
[1762788433711,0.20832818,105400.0,105390.0,0.0490607]
[1762788433898,0.01857486,105400.0,105390.0,0.23883202]
[1762788434233,0.20832818,105400.0,105390.0,0.09192267]
[1762788434475,0.20932818,105400.0,105390.0,0.09192267]
[1762788434592,0.20932818,105400.0,105390.0,0.0490607]
[1762788435873,0.01957486,105400.0,105390.0,0.23883202]
[1762788436116,0.01957486,105400.0,105390.0,0.60792754]
[1762788436551,0.01957486,105400.0,105390.0,0.23883202]
[1762788436761,0.01857486,105400.0,105390.0,0.23883202]
[1762788437006,0.01857486,105400.0,105390.0,0.68769846]
[1762788437232,0.01857486,105400.0,105390.0,1.04688074]
[1762788437446,0.01757486,105400.0,105390.0,0.67778522]
[1762788437647,0.01757486,105400.0,105390.0,1.04688074]
[1762788438289,0.01757486,105400.0,105390.0,0.67778522]
[1762788438497,0.01757486,105400.0,105390.0,1.01269846]
[1762788438978,0.01757486,105400.0,105390.0,1.01069846]
[1762788439429,0.01757486,105400.0,105390.0,0.64160294]
[1762788439878,0.01857486,105400.0,105390.0,0.64660294]
[1762788440548,0.01857486,105400.0,105390.0,0.65060294]
[1762788440765,0.01857486,105400.0,105390.0,1.01969846]
[1762788440978,0.01857486,105400.0,105390.0,0.64660294]
[1762788441195,0.01857486,105400.0,105390.0,0.64160294]
[1762788441397,0.01757486,105400.0,105390.0,1.18430094]
[1762788441608,0.01857486,105400.0,105390.0,1.18830094]
[1762788442982,0.01857486,105400.0,105390.0,1.55739646]
[1762788446691,0.01857486,105400.0,105390.0,1.59357874]
[1762788446933,0.01857486,105400.0,105390.0,1.66166875]
[1762788448666,0.01857486,105400.0,105390.0,1.73419644]
[1762788448895,0.01857486,105400.0,105390.0,1.88169644]
[1762788449116,0.001,105400.0,105390.0,1.88169644]
[1762788449376,0.001,105400.0,105390.0,1.81360643]
[1762788450000,0.001,105400.0,105390.0,1.44451091]
[1762788450202,0.01862391,105400.0,105390.0,1.84552007]
[1762788450328,0.001,105400.0,105390.0,1.84552007]
[1762788453788,0.001,105400.0,105390.0,1.47642455]
[1762788453994,0.001,105400.0,105390.0,1.40832863]
[1762788453995,0.01861457,105400.0,105390.0,1.40832863]
[1762788454192,0.20836789,105400.0,105390.0,0.86530094]
[1762788454397,0.20836789,105400.0,105390.0,0.67552962]
[1762788454615,0.01861457,105400.0,105390.0,0.86530094]
[1762788455154,0.20836789,105400.0,105390.0,0.86530094]
[1762788455563,0.20736789,105400.0,105390.0,0.66852962]
[1762788456003,0.25308789,105400.0,105390.0,0.5401887]
[1762788456006,0.29637655,105400.0,105390.0,0.5401887]
[1762788456229,0.27308789,105400.0,105390.0,0.5431887]
[1762788456678,0.27308789,105400.0,105390.0,0.5411887]
[1762788457352,0.24640789,105400.0,105390.0,0.5411887]
[1762788457832,0.20736789,105400.0,105390.0,0.5871787]
[1762788458067,0.01761457,105400.0,105390.0,0.5871787]
[1762788458278,0.01761457,105400.0,105390.0,0.77695002]
[1762788458513,0.2073594,105410.0,105400.0,0.18975332]
[1762788458722,0.20735637,105410.0,105400.0,0.14256033]
[1762788460720,0.01762106,105410.0,105400.0,0.33331365]
[1762788461135,0.20735637,105410.0,105400.0,0.33331365]
[1762788461585,0.20735637,105410.0,105400.0,0.14356033]
[1762788461913,0.20735637,105410.0,105400.0,0.33331365]
[1762788462154,0.20735637,105410.0,105400.0,0.14356033]
[1762788462516,0.01762106,105410.0,105400.0,0.33331365]
[1762788463121,0.01762106,105410.0,105400.0,0.14356033]
[1762788463317,0.20735637,105410.0,105400.0,0.14356033]
[1762788463814,0.01762106,105410.0,105400.0,0.65631365]
[1762788464120,0.18971954,105420.0,105400.0,0.65631365]
[1762788464322,0.18971954,105420.0,105410.0,0.21647531]
[1762788464529,0.18971954,105420.0,105410.0,0.3408348]
[1762788464730,0.19918548,105430.0,105410.0,0.3408348]
[1762788464951,0.18971732,105420.0,105410.0,0.15109949]
[1762788465350,0.21086548,105430.0,105410.0,0.3408348]
[1762788465508,0.22850349,105430.0,105420.0,0.01925]
[1762788465715,0.20733733,105430.0,105420.0,0.07739948]
[1762788466879,0.20933733,105430.0,105420.0,0.07739948]
[1762788467084,0.20933733,105430.0,105420.0,0.2671168]
[1762788467222,0.001,105430.0,105420.0,0.2671168]
[1762788467438,0.19069932,105430.0,105420.0,0.07739948]
[1762788467645,0.19069932,105430.0,105420.0,0.2671168]
[1762788467846,0.19069932,105430.0,105420.0,0.07739948]
[1762788468250,0.001,105430.0,105420.0,0.2671168]
[1762788468455,0.19069932,105430.0,105420.0,0.2671168]
[1762788468676,0.19169932,105430.0,105420.0,0.07739948]
[1762788469545,0.19169932,105430.0,105420.0,0.04599]
[1762788470603,0.18971732,105420.0,105410.0,0.13184949]
[1762788470808,0.19169932,105430.0,105420.0,0.04599]
[1762788471063,0.20932503,105430.0,105420.0,0.04599]
[1762788471669,0.01962571,105430.0,105420.0,0.23570732]
[1762788471871,0.30713686,105450.0,105430.0,0.18969578]
[1762788472031,0.3116841,105450.0,105440.0,0.02541]
[1762788472661,0.3116841,105450.0,105440.0,0.0527]
[1762788473071,0.31216282,105450.0,105440.0,0.0527]
[1762788473455,0.31216282,105450.0,105440.0,0.07693958]
[1762788473658,0.34959282,105450.0,105440.0,0.03206958]
[1762788473856,0.18969932,105430.0,105420.0,0.07978519]
[1762788474160,0.18969769,105440.0,105430.0,0.04041]
[1762788474361,0.18969769,105440.0,105430.0,0.05819]
[1762788474783,0.33340558,105450.0,105430.0,0.24788932]
[1762788474962,0.33102513,105450.0,105440.0,0.01778]
[1762788475100,0.32702513,105450.0,105440.0,0.04256893]
[1762788475300,0.32502513,105450.0,105440.0,0.04256893]
[1762788475502,0.31215513,105450.0,105440.0,0.06929893]
[1762788475956,0.31215435,105450.0,105440.0,0.06929893]
[1762788476424,0.31215435,105450.0,105440.0,0.25898026]
[1762788476900,0.31215435,105450.0,105440.0,0.06929893]
[1762788477422,0.18969764,105440.0,105430.0,0.00753]
[1762788477761,0.18969764,105440.0,105430.0,0.02531]
[1762788477981,0.20730835,105440.0,105430.0,0.02531]
[1762788478173,0.20730835,105440.0,105430.0,0.05204]
[1762788478386,0.2073083,105440.0,105430.0,0.05204]
[1762788478649,0.2073083,105440.0,105430.0,0.08152122]
[1762788479247,0.18969764,105440.0,105430.0,0.08152122]
[1762788479645,0.18969764,105440.0,105430.0,0.08252122]
[1762788479958,0.18969764,105440.0,105430.0,0.08452122]
[1762788480164,0.30740558,105450.0,105430.0,0.27422054]
[1762788480362,0.18968133,105440.0,105430.0,0.08452122]
[1762788480693,0.18968133,105440.0,105430.0,0.02831]
[1762788480927,0.20824133,105440.0,105430.0,0.00853]
[1762788481220,0.2258459,105440.0,105430.0,0.54753]
[1762788481625,0.2534659,105440.0,105430.0,0.54]
[1762788481828,0.2258459,105440.0,105430.0,0.54]
[1762788482028,0.2534659,105440.0,105430.0,0.54]
[1762788482490,0.2534659,105440.0,105430.0,0.539]
[1762788482918,0.2258459,105440.0,105430.0,0.54653]
[1762788483275,0.2072859,105440.0,105430.0,0.62894152]
[1762788484102,0.2072859,105440.0,105430.0,0.62694152]
[1762788485839,0.01760457,105440.0,105430.0,0.62694152]
[1762788485981,0.18968133,105440.0,105430.0,0.84337084]
[1762788486442,0.18968133,105440.0,105430.0,0.65367152]
[1762788487688,0.30740558,105450.0,105430.0,0.84337084]
[1762788487862,0.00047872,105450.0,105440.0,0.04451]
[1762788488067,0.00047872,105450.0,105440.0,0.30123357]
[1762788489831,0.00047872,105450.0,105440.0,0.30223357]
[1762788490386,0.00047872,105450.0,105440.0,0.62523357]
[1762788490571,0.00047872,105450.0,105440.0,0.62723357]
[1762788490777,0.00047872,105450.0,105440.0,0.69535904]
[1762788490992,0.00047872,105450.0,105440.0,0.62723357]
[1762788491205,0.00047872,105450.0,105440.0,0.69532352]
[1762788491408,0.00047872,105450.0,105440.0,1.1267196]
[1762788491633,0.00047872,105450.0,105440.0,0.62723357]
[1762788492198,0.00047872,105450.0,105440.0,0.69530316]
[1762788492396,0.00047872,105450.0,105440.0,0.50462183]
[1762788492605,0.00047872,105450.0,105440.0,0.11155224]
[1762788493079,0.22167206,105450.0,105440.0,0.005]
[1762788493269,0.23931894,105450.0,105440.0,0.005]
[1762788493564,0.23931894,105450.0,105440.0,0.003]
[1762788493958,0.28693894,105450.0,105440.0,0.003]
[1762788494565,0.28693894,105450.0,105440.0,0.004]
[1762788494971,0.28693894,105450.0,105440.0,0.006]
[1762788495199,0.24075894,105450.0,105440.0,0.02178]
[1762788495399,0.20778894,105450.0,105440.0,0.108014]
[1762788495823,0.20778894,105450.0,105440.0,0.104014]
[1762788496685,0.20778894,105450.0,105440.0,0.29369533]
[1762788496897,0.20778894,105450.0,105440.0,0.104014]
[1762788497531,0.22075894,105450.0,105430.0,0.54653]
[1762788497876,0.20824133,105440.0,105430.0,0.539]
[1762788498022,0.22588821,105440.0,105430.0,0.539]
[1762788498828,0.22588821,105440.0,105430.0,0.54653]
[1762788499020,0.25350821,105440.0,105430.0,0.539]
[1762788499469,0.25350821,105440.0,105430.0,0.59820552]
[1762788499616,0.22588821,105440.0,105430.0,0.54]
[1762788500463,0.20732821,105440.0,105430.0,0.56396]
[1762788500932,0.22588821,105440.0,105430.0,0.54]
[1762788501061,0.25350821,105440.0,105430.0,0.54]
[1762788501320,0.25350821,105440.0,105430.0,0.539]
[1762788501321,0.27350821,105440.0,105430.0,0.539]
[1762788501528,0.27350821,105440.0,105430.0,0.59820552]
[1762788502412,0.63269049,105440.0,105430.0,0.539]
[1762788503547,0.56888821,105440.0,105430.0,0.539]
[1762788503959,0.20732821,105440.0,105430.0,0.56314]
[1762788504164,0.20732821,105440.0,105430.0,0.58908]
[1762788504363,0.25142821,105440.0,105430.0,0.539]
[1762788504617,0.22521821,105440.0,105430.0,0.56008765]
[1762788504840,0.27142821,105440.0,105430.0,0.539]
[1762788507616,0.20732821,105440.0,105430.0,0.5829]
[1762788508057,0.20732821,105440.0,105430.0,0.58243415]
[1762788509064,0.20732821,105440.0,105430.0,0.55649415]
[1762788510253,0.20732821,105440.0,105430.0,0.61611157]
[1762788510817,0.22521821,105440.0,105430.0,0.59815157]
[1762788511185,0.27142821,105440.0,105430.0,0.53853415]
[1762788511304,0.25142821,105440.0,105430.0,0.53853415]
[1762788511524,0.20732821,105440.0,105430.0,0.58243415]
[1762788512402,0.01764688,105440.0,105430.0,0.77213347]
[1762788512844,0.20311206,105450.0,105440.0,0.18968133]
[1762788512845,0.19014206,105450.0,105440.0,0.18968133]
[1762788513051,0.20778885,105450.0,105440.0,0.32976281]
[1762788513258,0.00047872,105450.0,105440.0,0.32976281]
[1762788513876,0.05620872,105450.0,105440.0,0.09618148]
[1762788514099,0.05620872,105450.0,105430.0,0.60660374]
[1762788514100,0.18968133,105440.0,105430.0,0.53853415]
[1762788514270,0.57442883,105440.0,105430.0,0.53853415]
[1762788514426,0.20732883,105440.0,105430.0,0.58243415]
[1762788514620,0.20732883,105440.0,105430.0,0.65964922]
[1762788514848,0.18968133,105440.0,105430.0,0.84934854]
[1762788515050,0.18968133,105440.0,105430.0,0.65964922]
[1762788517556,0.18968133,105440.0,105430.0,0.66064922]
[1762788518169,0.19014206,105450.0,105430.0,0.85034661]
[1762788518382,0.18968133,105440.0,105430.0,0.61674922]
[1762788518782,0.18968133,105440.0,105430.0,0.63470922]
[1762788518921,0.18968133,105440.0,105430.0,0.66064922]
[1762788519926,0.18968133,105440.0,105430.0,0.66164922]
[1762788520276,0.19014206,105450.0,105430.0,0.85134854]
[1762788520426,0.20778979,105450.0,105440.0,0.0439]
[1762788520637,0.19014206,105450.0,105440.0,0.31871618]
[1762788520846,0.19014206,105450.0,105440.0,0.12903485]
[1762788521266,0.20778985,105450.0,105440.0,0.12903485]
[1762788521471,0.00047872,105450.0,105440.0,0.31871618]
[1762788521851,0.19014206,105450.0,105440.0,0.31871618]
[1762788522054,0.19014206,105450.0,105440.0,0.12903485]
[1762788522506,0.19014206,105450.0,105440.0,0.31871618]
[1762788522725,0.19014206,105450.0,105440.0,0.12903485]
[1762788523066,0.19014206,105450.0,105440.0,0.10309485]
[1762788523264,0.18968133,105440.0,105430.0,0.56447415]
[1762788523688,0.18968133,105440.0,105430.0,0.58243415]
[1762788524576,0.18968133,105440.0,105430.0,0.58443415]
[1762788525716,0.18968133,105440.0,105430.0,0.77413347]
[1762788526632,0.19014206,105450.0,105430.0,0.77413347]
[1762788526817,0.20781085,105450.0,105440.0,0.0439]
[1762788527216,0.20781235,105450.0,105440.0,0.0439]
[1762788527429,0.20781235,105450.0,105440.0,0.01796]
[1762788527627,0.20781235,105450.0,105440.0,0.0439]
[1762788527853,0.20781235,105450.0,105440.0,0.01796]
[1762788529537,0.01814901,105450.0,105440.0,0.13092327]
[1762788529689,0.01814901,105450.0,105440.0,0.3206046]
[1762788529690,0.00047872,105450.0,105440.0,0.3206046]
[1762788530798,0.00047872,105450.0,105440.0,0.38867419]
[1762788531000,0.00047872,105450.0,105440.0,0.39067419]
[1762788532279,0.19014206,105450.0,105440.0,0.39067419]
[1762788533681,0.00047872,105450.0,105440.0,0.39067419]
[1762788534559,0.19014206,105450.0,105440.0,0.20099286]
[1762788534697,0.00047872,105450.0,105440.0,0.3226046]
[1762788534897,0.19014206,105450.0,105440.0,0.3226046]
[1762788536140,0.19014206,105450.0,105440.0,0.13292327]
[1762788536575,0.20781221,105450.0,105440.0,0.13292327]
[1762788536783,0.20781221,105450.0,105440.0,0.10698327]
[1762788536987,0.23497221,105450.0,105440.0,0.002]
[1762788537186,0.26097221,105450.0,105440.0,0.002]
[1762788537384,0.21775221,105450.0,105440.0,0.01852]
[1762788537547,0.20781221,105450.0,105440.0,0.01852]
[1762788537732,0.26097221,105450.0,105440.0,0.002]
[1762788537935,0.26097378,105450.0,105440.0,0.002]
[1762788538156,0.23497378,105450.0,105440.0,0.002]
[1762788539675,0.20781378,105450.0,105440.0,0.0438]
[1762788539934,0.20781378,105450.0,105440.0,0.31068459]
[1762788540580,0.01815044,105450.0,105440.0,0.31068459]
[1762788540784,0.20781378,105450.0,105440.0,0.12100326]
[1762788542363,0.20781378,105450.0,105440.0,0.31068459]
[1762788543270,0.20781378,105450.0,105440.0,0.12100326]
[1762788543680,0.20781378,105450.0,105440.0,0.31068459]
[1762788543899,0.01815044,105450.0,105440.0,0.31068459]
[1762788544526,0.00047872,105450.0,105440.0,0.18907285]
[1762788544724,0.00047872,105450.0,105440.0,0.31068459]
[1762788545336,0.00047872,105450.0,105440.0,0.37875418]
[1762788545544,0.00047872,105450.0,105440.0,0.7474743]
[1762788546980,0.00047872,105450.0,105440.0,0.37875418]
[1762788547186,0.00047872,105450.0,105440.0,0.7474743]
[1762788549929,0.00047872,105450.0,105440.0,1.0704743]
[1762788550135,0.00047872,105450.0,105440.0,1.0871496]
[1762788551182,0.19905242,105500.0,105480.0,0.18960415]
[1762788551398,0.21670651,105500.0,105490.0,0.02097]
[1762788551613,0.21670651,105500.0,105490.0,0.04625]
[1762788552892,0.21670651,105500.0,105490.0,0.04606]
[1762788553113,0.21670651,105500.0,105490.0,0.02078]
[1762788553527,0.25392651,105500.0,105490.0,0.00426]
[1762788553760,0.18959143,105490.0,105480.0,0.05715042]
[1762788554244,0.18959143,105490.0,105480.0,0.07367042]
[1762788554450,0.20721651,105490.0,105480.0,0.07367042]
[1762788555083,0.20821651,105490.0,105480.0,0.26327982]
[1762788556351,0.19059143,105490.0,105480.0,0.26327982]
[1762788556562,0.20821143,105490.0,105480.0,0.26327982]
[1762788556993,0.20821171,105490.0,105480.0,0.07367042]
[1762788557844,0.20821171,105490.0,105480.0,0.26327982]
[1762788558700,0.01862028,105490.0,105480.0,0.26327982]
[1762788558905,0.20821171,105490.0,105480.0,0.26327982]
[1762788559120,0.20821171,105490.0,105480.0,0.07367042]
[1762788560187,0.20821171,105490.0,105480.0,0.26327982]
[1762788561030,0.01862028,105490.0,105480.0,0.26327982]
[1762788561239,0.20821171,105490.0,105480.0,0.26327982]
[1762788561447,0.20821171,105490.0,105480.0,0.07367042]
[1762788562062,0.20821171,105490.0,105480.0,0.26327982]
[1762788563032,0.20821171,105490.0,105480.0,0.07367042]
[1762788563211,0.20821171,105490.0,105480.0,0.26327982]
[1762788563814,0.20821171,105490.0,105480.0,0.07367042]
[1762788564419,0.01862028,105490.0,105480.0,0.26327982]
[1762788564621,0.001,105490.0,105480.0,0.63199994]
[1762788564827,0.001,105490.0,105480.0,0.26327982]
[1762788565082,0.001,105490.0,105480.0,0.07367042]
[1762788565295,0.001,105490.0,105480.0,0.26327982]
[1762788566264,0.001,105490.0,105480.0,0.63199994]
[1762788566491,0.19923327,105510.0,105500.0,0.18957345]
[1762788566759,0.21696066,105510.0,105500.0,0.24409831]
[1762788566963,0.02740516,105510.0,105500.0,0.26788831]
[1762788567147,0.01792739,105510.0,105500.0,0.26788831]
[1762788567348,0.20748288,105510.0,105500.0,0.26788831]
[1762788567655,0.01792739,105510.0,105500.0,0.26788831]
[1762788567849,0.01792739,105510.0,105500.0,0.26888831]
[1762788568076,0.01792739,105510.0,105500.0,0.26988831]
[1762788568856,0.20748288,105510.0,105500.0,0.08031486]
[1762788569181,0.01792739,105510.0,105500.0,0.26988831]
[1762788569605,0.01792739,105510.0,105500.0,0.63860843]
[1762788569807,0.01792739,105510.0,105500.0,0.26988831]
[1762788570616,1.22595239,105520.0,105500.0,1.04740852]
[1762788570822,0.0002,105540.0,105530.0,0.54870184]
[1762788571030,0.0002,105540.0,105530.0,0.93255196]
[1762788571230,0.0002,105540.0,105530.0,0.94768196]
[1762788571632,0.0004,105550.0,105540.0,0.88122173]
[1762788571832,0.00053621,105550.0,105540.0,0.91108173]
[1762788572036,0.00053621,105550.0,105540.0,0.94726401]
[1762788572667,0.00053621,105550.0,105540.0,0.57854389]
[1762788572928,0.00053621,105550.0,105540.0,0.94726401]
[1762788573704,0.00153621,105550.0,105540.0,0.95226401]
[1762788574568,0.00053621,105550.0,105540.0,0.94726401]
[1762788574987,0.00053621,105550.0,105540.0,0.57854389]
[1762788575207,0.00053621,105550.0,105540.0,0.54536161]
[1762788575419,0.00053621,105550.0,105540.0,0.91408173]
[1762788576068,0.00153621,105550.0,105540.0,0.92008173]
[1762788576784,0.00053621,105550.0,105540.0,0.95026401]
[1762788576995,0.00153621,105550.0,105540.0,0.95226401]
[1762788577219,0.00224306,105550.0,105540.0,0.95226401]
[1762788577429,0.00224306,105550.0,105540.0,0.95626401]
[1762788577855,0.00224306,105550.0,105540.0,0.95226401]
[1762788578299,0.00224306,105550.0,105540.0,0.95526401]
[1762788581629,0.0002,105560.0,105550.0,0.59438605]
[1762788581839,0.0002,105580.0,105570.0,0.88116787]
[1762788582047,0.00067855,105580.0,105570.0,0.93228015]
[1762788582248,0.00067855,105580.0,105570.0,0.94721015]
[1762788582656,0.00067855,105580.0,105570.0,0.61380246]
[1762788582867,0.19010836,105580.0,105570.0,0.10135471]
[1762788583067,0.20760967,105580.0,105570.0,0.10135471]
[1762788583693,0.20760967,105580.0,105570.0,0.01493]
[1762788584106,0.18944775,105570.0,105550.0,0.21223365]
[1762788584345,0.20694906,105570.0,105560.0,0.01493]
[1762788584544,0.20694906,105570.0,105560.0,0.02986]
[1762788584957,0.20694906,105570.0,105560.0,0.2193257]
[1762788585571,0.20694906,105570.0,105560.0,0.02986]
[1762788585782,0.20694906,105570.0,105560.0,0.2193257]
[1762788586198,0.20694906,105570.0,105560.0,0.02986]
[1762788586612,0.20694906,105570.0,105560.0,0.01493]
[1762788587229,0.20694906,105570.0,105560.0,0.01693]
[1762788587584,0.20694906,105570.0,105560.0,0.01893]
[1762788587999,0.20694906,105570.0,105560.0,0.03386]
[1762788588204,0.20694906,105570.0,105560.0,0.03186]
[1762788588608,0.20694906,105570.0,105560.0,0.02986]
[1762788589149,0.26023906,105570.0,105560.0,0.00629]
[1762788589346,0.23453906,105570.0,105560.0,0.00629]
[1762788589574,0.20694906,105570.0,105560.0,0.0229]
[1762788589775,0.20694906,105570.0,105560.0,0.2123657]
[1762788590001,0.20694906,105570.0,105560.0,0.2361557]
[1762788590432,0.01750131,105570.0,105560.0,0.2361557]
[1762788590644,0.01750131,105570.0,105560.0,0.60487582]
[1762788590844,0.01750131,105570.0,105560.0,1.04985819]
[1762788591254,0.00067855,105580.0,105570.0,0.51244775]
[1762788591461,0.01823156,105580.0,105570.0,0.55284775]
[1762788591670,0.00067855,105580.0,105570.0,0.55284775]
[1762788592571,0.00067855,105580.0,105570.0,0.92156787]
[1762788593005,0.00138511,105580.0,105570.0,0.55284775]
[1762788593236,0.19081492,105580.0,105570.0,0.55284775]
[1762788593455,0.00138511,105580.0,105570.0,0.55284775]
[1762788593701,0.19081492,105580.0,105570.0,0.01661]
[1762788593923,0.18944775,105570.0,105560.0,0.03482]
[1762788594148,0.18944775,105570.0,105560.0,0.2242857]
[1762788594380,0.20702759,105570.0,105560.0,0.2444757]
[1762788594596,0.20702759,105570.0,105560.0,0.05501]
[1762788594814,0.20702759,105570.0,105560.0,0.2434757]
[1762788595683,0.20702759,105570.0,105560.0,0.2444757]
[1762788595900,0.20702759,105570.0,105560.0,0.02848]
[1762788596111,0.20702759,105570.0,105560.0,0.2179457]
[1762788596964,0.20702759,105570.0,105560.0,0.02848]
[1762788597373,0.21583868,105570.0,105560.0,0.02848]
[1762788597574,0.21557958,105570.0,105560.0,0.02848]
[1762788597781,0.21557958,105570.0,105560.0,0.2179457]
[1762788597988,0.19010836,105580.0,105560.0,0.2179457]
[1762788598196,0.21654289,105580.0,105570.0,0.18944775]
[1762788598409,0.02711308,105580.0,105570.0,0.21023775]
[1762788598611,0.02711308,105580.0,105570.0,0.23736775]
[1762788598813,0.21654289,105580.0,105570.0,0.23736775]
[1762788599050,0.02711308,105580.0,105570.0,0.23736775]
[1762788599254,0.21654289,105580.0,105570.0,0.23736775]
[1762788599660,0.02711308,105580.0,105570.0,0.23736775]
[1762788600079,0.21724945,105580.0,105570.0,0.23736775]
[1762788600257,0.02781964,105580.0,105570.0,0.23736775]
[1762788600606,0.02781964,105580.0,105570.0,0.60608787]
[1762788601129,0.02781964,105580.0,105570.0,0.92908787]
[1762788601317,0.01900813,105580.0,105570.0,0.99723157]
[1762788601578,0.01900813,105580.0,105570.0,0.62851145]
[1762788601815,0.01900813,105580.0,105570.0,0.99723157]
[1762788602038,0.01900813,105580.0,105570.0,1.03341385]
[1762788602832,0.00138511,105580.0,105570.0,1.12021394]
[1762788603241,0.0002,105590.0,105580.0,0.54861209]
[1762788603439,0.0180178,105590.0,105580.0,1.03339591]
[1762788604047,1e-08,105600.0,105590.0,1.44648448]
[1762788604280,8e-05,105650.0,105640.0,0.18932222]
[1762788604466,0.00905442,105650.0,105640.0,0.22031222]
[1762788604640,0.00905442,105650.0,105640.0,0.24744222]
[1762788605047,0.18952781,105650.0,105640.0,0.05812]
[1762788605899,0.18952781,105650.0,105640.0,0.03099]
[1762788606325,0.20552781,105650.0,105640.0,0.03099]
[1762788606549,0.18933832,105640.0,105630.0,0.0102]
[1762788606754,0.18932222,105640.0,105630.0,0.19954014]
[1762788607011,0.18932222,105640.0,105630.0,0.0102]
[1762788607232,0.18932222,105640.0,105630.0,0.24746014]
[1762788607444,0.19899302,105650.0,105630.0,0.24746014]
[1762788607795,0.18932222,105640.0,105630.0,0.24746014]
[1762788608004,0.18932222,105640.0,105630.0,0.03099]
[1762788608599,0.18934014,105630.0,105620.0,0.0102]
[1762788608873,0.18934014,105630.0,105600.0,0.35013]
[1762788608874,0.189376,105610.0,105600.0,0.35013]
[1762788609042,0.189376,105610.0,105600.0,0.03733]
[1762788609222,0.19008225,105610.0,105600.0,0.24751393]
[1762788609730,0.00070625,105610.0,105600.0,0.24751393]
[1762788610422,0.00070625,105610.0,105600.0,0.74479427]
[1762788610630,0.00070625,105610.0,105600.0,1.06779427]
[1762788611272,0.00070625,105610.0,105600.0,1.14051862]
[1762788611895,0.00070625,105610.0,105600.0,0.64323828]
[1762788612104,0.00070625,105610.0,105600.0,1.14151862]
[1762788612312,0.00070625,105610.0,105600.0,0.64423828]
[1762788612733,0.00070625,105610.0,105600.0,1.1777009]
[1762788612948,0.18938547,105650.0,105640.0,0.18932222]
[1762788613166,0.18952898,105650.0,105640.0,0.03099]
[1762788613603,0.18952898,105650.0,105640.0,0.05812]
[1762788613823,0.18952898,105650.0,105640.0,0.03099]
[1762788616157,0.18952898,105650.0,105640.0,0.22031222]
[1762788616380,0.18952898,105650.0,105640.0,0.0102]
[1762788617178,0.18934014,105630.0,105620.0,0.35013]
[1762788617343,0.18934297,105630.0,105620.0,0.18935807]
[1762788617542,0.19880434,105640.0,105620.0,0.23727807]
[1762788617742,0.19880434,105640.0,105630.0,0.0102]
[1762788618211,0.18935807,105620.0,105610.0,0.02713]
[1762788618435,0.18935618,105630.0,105620.0,0.18935807]
[1762788618645,0.18934014,105630.0,105620.0,0.23727807]
[1762788618847,0.18934014,105630.0,105620.0,0.21014807]
[1762788619045,0.18934014,105630.0,105620.0,0.02079]
[1762788619282,0.18934014,105630.0,105620.0,0.02179]
[1762788619695,0.18934014,105630.0,105620.0,0.18935807]
[1762788619873,0.18934014,105630.0,105620.0,0.21114807]
[1762788620332,0.18934014,105630.0,105620.0,0.02179]
[1762788620676,0.27210588,105630.0,105620.0,0.001]
[1762788621467,0.25450014,105630.0,105620.0,0.001]
[1762788621874,0.22517014,105630.0,105620.0,0.001]
[1762788622182,0.189376,105610.0,105600.0,0.0102]
[1762788623099,0.204256,105610.0,105600.0,0.0102]
[1762788623326,0.225106,105610.0,105600.0,0.0102]
[1762788623737,0.225106,105610.0,105600.0,0.0112]
[1762788623950,0.29984941,105610.0,105600.0,0.001]
[1762788624154,0.62284941,105610.0,105600.0,0.001]
[1762788624359,0.62284941,105610.0,105600.0,0.002]
[1762788624973,0.578376,105610.0,105600.0,0.002]
[1762788625382,0.578376,105610.0,105600.0,0.001]
[1762788625789,0.598376,105610.0,105600.0,0.001]
[1762788626020,0.598376,105610.0,105590.0,0.0085]
[1762788626231,0.18941187,105590.0,105580.0,0.00673]
[1762788626438,0.20429187,105590.0,105580.0,0.00673]
[1762788626641,0.22514187,105590.0,105580.0,0.00673]
[1762788626847,0.25541187,105590.0,105580.0,0.00673]
[1762788627074,0.18944775,105570.0,105560.0,0.26568533]
[1762788627306,0.18944775,105570.0,105560.0,0.53837168]
[1762788627508,0.18944775,105570.0,105560.0,0.28669388]
[1762788627711,0.18944598,105580.0,105570.0,0.18944775]
[1762788627932,0.18944598,105580.0,105570.0,0.21670775]
[1762788628137,0.21376246,105590.0,105570.0,0.21670775]
[1762788628350,0.18942981,105580.0,105570.0,0.24213775]